fUSD/lending_fUSD_20260512
["ID","MTS","AMOUNT","RATE_DAILY","PERIOD"]
[422114381,1778577141000,-16369.00666304,0.00041361,120]
[422114380,1778577141000,-16369.00666304,0.00041361,120]
[422114377,1778577141000,-16369.00666304,0.00041361,120]
[422114378,1778577141000,-16369.00666304,0.00041361,120]
[422114376,1778577141000,-16369.00666304,0.00041361,120]
[422114382,1778577141000,-16369.00666304,0.00041361,120]
[422114383,1778577141000,-16369.00666304,0.00041361,120]
[422114410,1778577141000,-1562.0,0.0004137,120]
[422114399,1778577141000,-500.0,0.00041361,120]
[422114409,1778577141000,-1148.7866003,0.00041369,120]
[422114448,1778577141000,-17628.16102174,0.00041634,120]
[422114451,1778577141000,-17628.16102174,0.00041634,120]
[422114453,1778577141000,-17628.16102174,0.00041634,120]
[422114447,1778577141000,-17628.16102174,0.00041634,120]
[422114454,1778577141000,-17628.16102174,0.00041634,120]
[422114450,1778577141000,-17628.16102174,0.00041634,120]
[422114452,1778577141000,-17628.16102174,0.00041634,120]
[422114449,1778577141000,-17628.16102174,0.00041634,120]
[422114456,1778577141000,-17628.16102174,0.00041634,120]
[422114466,1778577141000,-1448.6,0.00041694,120]
[422114467,1778577141000,-220.52,0.00041695,120]
[422114455,1778577141000,-17628.16102174,0.00041634,120]
[422114468,1778577141000,-230.33,0.00041695,120]
[422114459,1778577141000,-1242.15,0.00041644,120]
[422114463,1778577141000,-725.66,0.00041644,120]
[422114460,1778577141000,-643.84,0.00041644,120]
[422114462,1778577141000,-638.35,0.00041644,30]
[422114461,1778577141000,-729.48,0.00041644,30]
[422114457,1778577141000,-1562.0,0.00041644,120]
[422114464,1778577141000,-7705.63984573,0.00041644,120]
[422114465,1778577141000,-150.0,0.00041652,120]
[422114458,1778577141000,-648.95,0.00041644,120]
[422114469,1778577141000,-1000.0,0.000417,120]
[422114471,1778577141000,-10643.0,0.000417,117]
[422114472,1778577141000,-330.0,0.00041711,92]
[422114473,1778577141000,-13891.78293369,0.00041747,2]
[422114470,1778577141000,-161.0,0.000417,120]
[422114443,1778577141000,-1148.7866003,0.000416,120]
[422114446,1778577141000,-17628.16102174,0.00041634,120]
[422114411,1778577141000,-511.0,0.00041387,19]
[422114445,1778577141000,-17628.16102174,0.00041634,120]
[422114444,1778577141000,-17628.16102174,0.00041634,120]
[422114416,1778577141000,-1148.7866003,0.00041461,120]
[422114418,1778577141000,-17628.16102174,0.00041497,120]
[422114427,1778577141000,-17628.16102174,0.00041497,120]
[422114419,1778577141000,-17628.16102174,0.00041497,120]
[422114422,1778577141000,-17628.16102174,0.00041497,120]
[422114417,1778577141000,-157.27100825,0.0004147,120]
[422114421,1778577141000,-17628.16102174,0.00041497,120]
[422114423,1778577141000,-17628.16102174,0.00041497,120]
[422114420,1778577141000,-17628.16102174,0.00041497,120]
[422114424,1778577141000,-17628.16102174,0.00041497,120]
[422114426,1778577141000,-17628.16102174,0.00041497,120]
[422114425,1778577141000,-17628.16102174,0.00041497,120]
[422114428,1778577141000,-17628.16102174,0.00041497,120]
[422114429,1778577141000,-17628.16102174,0.00041497,120]
[422114442,1778577141000,-1148.7866003,0.00041554,120]
[422114430,1778577141000,-17628.16102174,0.00041497,120]
[422114438,1778577141000,-4390.26,0.000415,120]
[422114439,1778577141000,-1148.7866003,0.00041508,120]
[422114436,1778577141000,-70000.00000004,0.000415,50]
[422114435,1778577141000,-70000.00000004,0.000415,40]
[422114437,1778577141000,-70000.00000004,0.000415,60]
[422114433,1778577141000,-9032.44201705,0.000415,120]
[422114431,1778577141000,-5000.0,0.000415,21]
[422114432,1778577141000,-1057.75,0.000415,120]
[422114441,1778577141000,-304.0,0.00041538,120]
[422114440,1778577141000,-157.71229644,0.00041533,2]
[422114434,1778577141000,-73240.910647,0.000415,30]
[422114486,1778577142000,-190.74927559,0.000418,120]
[422114490,1778577142000,-2081.36,0.00041899,120]
[422114484,1778577142000,-19313.18928343,0.000418,15]
[422114482,1778577142000,-198.66285861,0.000418,120]
[422114487,1778577142000,-157.71229644,0.00041807,2]
[422114504,1778577142000,-1499.34,0.000419,120]
[422114497,1778577142000,-13283.358,0.000419,30]
[422114499,1778577142000,-13283.36,0.000419,30]
[422114500,1778577142000,-160.9,0.000419,120]
[422114498,1778577142000,-13283.358,0.000419,30]
[422114485,1778577142000,-799.4,0.000418,31]
[422114495,1778577142000,-13283.358,0.000419,30]
[422114488,1778577142000,-442.86240685,0.00041875,60]
[422114474,1778577142000,-337.57,0.0004175,120]
[422114492,1778577142000,-312.1264,0.000419,120]
[422114489,1778577142000,-274.46580589,0.00041889,120]
[422114493,1778577142000,-5579.0,0.000419,120]
[422114494,1778577142000,-201.82989658,0.000419,120]
[422114483,1778577142000,-536.69,0.000418,120]
[422114481,1778577142000,-1000.0,0.000418,120]
[422114476,1778577142000,-1000.0,0.00041781,30]
[422114480,1778577142000,-2527.39814836,0.0004179,120]
[422114475,1778577142000,-3989.38,0.00041775,120]
[422114478,1778577142000,-2159.57,0.00041785,7]
[422114477,1778577142000,-1000.0,0.00041781,30]
[422114479,1778577142000,-2159.56,0.00041785,7]
[422114502,1778577142000,-1499.347,0.000419,120]
[422114491,1778577142000,-1000.0,0.000419,120]
[422114501,1778577142000,-2070.61238573,0.000419,5]
[422114517,1778577142000,-9271.89870346,0.0004199,60]
[422114505,1778577142000,-1504.14868521,0.000419,30]
[422114533,1778577142000,-59656.67925869,0.00042,120]
[422114532,1778577142000,-1000000.0,0.00042,120]
[422114529,1778577142000,-1000000.0,0.00042,120]
[422114506,1778577142000,-3240.0,0.000419,120]
[422114531,1778577142000,-1000000.0,0.00042,120]
[422114527,1778577142000,-1000000.0,0.00042,120]
[422114530,1778577142000,-1000000.0,0.00042,120]
[422114526,1778577142000,-1000000.0,0.00042,120]
[422114523,1778577142000,-1000000.0,0.00042,120]
[422114521,1778577142000,-50000.0,0.00042,69]
[422114524,1778577142000,-1000000.0,0.00042,120]
[422114522,1778577142000,-50000.0,0.00042,70]
[422114520,1778577142000,-263.85,0.00041999,7]
[422114528,1778577142000,-1000000.0,0.00042,120]
[422114516,1778577142000,-1411.17946882,0.0004198,70]
[422114515,1778577142000,-384.84296685,0.0004198,70]
[422114503,1778577142000,-1499.347,0.000419,120]
[422114496,1778577142000,-13283.358,0.000419,30]
[422114507,1778577142000,-60048.29627223,0.000419,10]
[422114518,1778577142000,-5912.03,0.0004199,120]
[422114519,1778577142000,-230.48859135,0.00041998,120]
[422114512,1778577142000,-1562.0,0.00041918,120]
[422114525,1778577142000,-1000000.0,0.00042,120]
[422114509,1778577142000,-151.39100753,0.000419,120]
[422114511,1778577142000,-151.39100753,0.000419,120]
[422114510,1778577142000,-151.39100753,0.000419,120]
[422114514,1778577142000,-1000.0,0.0004195,30]
[422114508,1778577142000,-151.39100754,0.000419,120]
[422114513,1778577142000,-2705.0,0.00041918,90]
[422114536,1778577144000,-300.0,0.00042,120]
[422114534,1778577144000,-481.3395008,0.00042,120]
[422114535,1778577144000,-189477.94562903,0.00042,120]
[422114537,1778577144000,-1977.0614353,0.00042,120]
[422114538,1778577145000,500.0,0.00013698,2]
[422114539,1778577146000,192.73,0.00025957,120]
[422114541,1778577209000,-500.0,0.00010699,2]
[422114543,1778577210000,-500.0,0.00010699,2]
[422114544,1778577210000,-166.90746062,0.00010646,2]
[422114542,1778577210000,-500.0,0.00010699,2]
[422114547,1778577210000,-333.09253938,0.00010699,2]
[422114545,1778577210000,-333.09253938,0.00010699,2]
[422114546,1778577210000,-166.90746062,0.00010699,2]
[422114549,1778577346000,150.0,0.00024505,120]
[422114552,1778577543000,-339.0,0.0001188,2]
[422114554,1778577641000,393.91813,0.00025832,120]
[422114557,1778577681000,196.959065,0.00025634,120]
[422114558,1778577684000,500.0,0.00027397,120]
[422114559,1778577733000,304.72177,0.00025634,120]
[422114560,1778577765000,1000.0,0.00027397,120]
[422114567,1778577984000,263.6,9.284e-05,2]
[422114569,1778578022000,-226.0,0.00011644,2]
[422114570,1778578047000,-250.0,0.00011821,2]
[422114579,1778578152000,-176.37463384,0.00011986,2]
[422114578,1778578152000,-176.37463384,0.00011982,2]
[422114577,1778578152000,-26.37463384,0.00011982,2]
[422114576,1778578152000,-150.0,0.00011947,2]
[422114575,1778578152000,-176.37463384,0.0001188,2]
[422114585,1778578153000,-79.12390152,0.0001242,2]
[422114584,1778578153000,-97.25073232,0.00012302,2]
[422114583,1778578153000,-52.74926768,0.00012302,2]
[422114582,1778578153000,-123.62536616,0.00012184,2]
[422114580,1778578153000,-150.0,0.00012066,2]
[422114581,1778578153000,-26.37463384,0.00012184,2]
[422114586,1778578154000,-176.37463384,0.00012837,2]
[422114588,1778578154000,-176.37463384,0.00012837,2]
[422114587,1778578154000,-176.37463384,0.00012837,2]
[422114589,1778578228000,-472.91636831,0.00012837,2]
[422114600,1778578229000,-388.91620556,0.00015186,2]
[422114599,1778578229000,-84.00016275,0.00015186,2]
[422114598,1778578229000,214.162147,0.00023974,120]
[422114596,1778578229000,-256.91653106,0.00015185,2]
[422114597,1778578229000,-215.99983725,0.00015186,2]
[422114595,1778578229000,-43.08346894,0.00015185,2]
[422114594,1778578229000,-300.0,0.00015185,2]
[422114593,1778578229000,-129.83289937,0.00013858,2]
[422114591,1778578229000,-250.0,0.00013068,2]
[422114592,1778578229000,-46.54173447,0.00013858,2]
[422114590,1778578229000,-176.37463384,0.00013068,2]
[422114601,1778578230000,-328.02536616,0.00012952,2]
[422114603,1778578230000,-105.10899785,0.00014121,2]
[422114604,1778578230000,-367.80737046,0.00015186,2]
[422114602,1778578230000,-144.89100215,0.00014121,2]
[422114634,1778578231000,-514.0,0.00019822,2]
[422114631,1778578231000,-1852.42,0.00019515,2]
[422114642,1778578231000,-154.09,0.00020169,2]
[422114643,1778578231000,-4596.40232797,0.00020356,2]
[422114632,1778578231000,-264.15,0.00019668,2]
[422114622,1778578231000,-2000.0,0.00018421,2]
[422114629,1778578231000,-440.99,0.00019402,2]
[422114621,1778578231000,-166.66,0.00018388,2]
[422114623,1778578231000,-175.51,0.00018475,2]
[422114625,1778578231000,-850.0,0.00018771,2]
[422114628,1778578231000,-1481.72756179,0.00019189,2]
[422114640,1778578231000,-326.0,0.0002,2]
[422114627,1778578231000,-166.66,0.00019131,2]
[422114624,1778578231000,-166.66,0.0001876,2]
[422114616,1778578231000,-175.42,0.00016712,2]
[422114617,1778578231000,-1002.04026983,0.00017278,2]
[422114615,1778578231000,-2620.08473871,0.00015187,2]
[422114619,1778578231000,-166.66,0.00017645,2]
[422114620,1778578231000,-166.66,0.00018017,2]
[422114618,1778578231000,-761.9,0.000174,2]
[422114614,1778578231000,-2424.07895351,0.00015187,2]
[422114612,1778578231000,-832.19262954,0.00015186,2]
[422114613,1778578231000,-2161.68791919,0.00015187,2]
[422114630,1778578231000,-166.66,0.00019503,2]
[422114637,1778578231000,-154.0,0.0002,2]
[422114626,1778578231000,-41204.47,0.00018772,2]
[422114633,1778578231000,-150.0,0.00019687,2]
[422114636,1778578231000,-262.0,0.0002,2]
[422114664,1778578231000,-999.99,0.00021757,2]
[422114662,1778578231000,-9999.99,0.00021757,2]
[422114663,1778578231000,-2435.0,0.00021757,2]
[422114656,1778578231000,-250.0,0.00021221,2]
[422114661,1778578231000,-7507.89503217,0.00021747,2]
[422114660,1778578231000,-1002.04026983,0.00021718,2]
[422114659,1778578231000,-500.0,0.00021506,2]
[422114658,1778578231000,-500.0,0.00021506,2]
[422114650,1778578231000,-154.0,0.00021,2]
[422114651,1778578231000,-151.0,0.00021,2]
[422114645,1778578231000,-500.0,0.0002048,2]
[422114657,1778578231000,-252.535585,0.00021221,2]
[422114655,1778578231000,-787.53221972,0.00021219,2]
[422114653,1778578231000,-170.25,0.00021021,2]
[422114652,1778578231000,-326.0,0.00021,2]
[422114648,1778578231000,-152.0,0.00021,2]
[422114647,1778578231000,-2000.0,0.00020724,2]
[422114649,1778578231000,-262.0,0.00021,2]
[422114646,1778578231000,-150.0,0.0002058,2]
[422114644,1778578231000,-536.29533867,0.00020407,2]
[422114639,1778578231000,-151.0,0.0002,2]
[422114641,1778578231000,-2251.41,0.0002,30]
[422114654,1778578231000,-2721.98914431,0.000211,2]
[422114635,1778578231000,-152.0,0.0002,2]
[422114715,1778578232000,-579.17367093,0.00022561,2]
[422114705,1778578232000,-500.0,0.00022561,2]
[422114700,1778578232000,-522.88576035,0.00022561,2]
[422114701,1778578232000,-500.0,0.00022561,2]
[422114694,1778578232000,-500.0,0.00022561,2]
[422114703,1778578232000,-500.0,0.00022561,2]
[422114702,1778578232000,-500.0,0.00022561,2]
[422114696,1778578232000,-500.0,0.00022561,2]
[422114698,1778578232000,-500.35069752,0.00022561,2]
[422114708,1778578232000,-579.17367093,0.00022561,2]
[422114699,1778578232000,-500.0,0.00022561,2]
[422114704,1778578232000,-500.0,0.00022561,2]
[422114725,1778578232000,-579.17367093,0.00022561,2]
[422114707,1778578232000,-579.17367093,0.00022561,2]
[422114713,1778578232000,-579.17367093,0.00022561,2]
[422114709,1778578232000,-579.17367093,0.00022561,2]
[422114711,1778578232000,-579.17367093,0.00022561,2]
[422114710,1778578232000,-579.17367093,0.00022561,2]
[422114712,1778578232000,-579.17367093,0.00022561,2]
[422114714,1778578232000,-579.17367093,0.00022561,2]
[422114716,1778578232000,-579.17367093,0.00022561,2]
[422114717,1778578232000,-579.17367093,0.00022561,2]
[422114726,1778578232000,-579.17367093,0.00022561,2]
[422114697,1778578232000,-500.92168703,0.00022561,2]
[422114721,1778578232000,-579.17367093,0.00022561,2]
[422114706,1778578232000,-500.0,0.00022561,2]
[422114695,1778578232000,-500.0,0.00022561,2]
[422114689,1778578232000,-500.0,0.00022561,2]
[422114693,1778578232000,-500.0,0.00022561,2]
[422114666,1778578232000,-500.0,0.0002178,2]
[422114667,1778578232000,-1401.39,0.00021818,2]
[422114665,1778578232000,-150.99,0.00021757,2]
[422114669,1778578232000,-1948.85,0.00021941,30]
[422114678,1778578232000,-864.82,0.0002222,2]
[422114679,1778578232000,-500.0,0.00022328,2]
[422114677,1778578232000,-500.0,0.00022054,2]
[422114668,1778578232000,-2500.0,0.00021818,2]
[422114674,1778578232000,-160.0,0.00022,2]
[422114672,1778578232000,-152.0,0.00022,2]
[422114673,1778578232000,-262.0,0.00022,2]
[422114671,1778578232000,-200.0,0.00021977,2]
[422114692,1778578232000,-500.0,0.00022561,2]
[422114675,1778578232000,-151.0,0.00022,2]
[422114676,1778578232000,-326.0,0.00022,2]
[422114682,1778578232000,-9717.71505489,0.00022462,2]
[422114688,1778578232000,-349.22785909,0.00022561,2]
[422114681,1778578232000,-16972.25777631,0.00022462,2]
[422114684,1778578232000,-99046.7044,0.00022462,2]
[422114683,1778578232000,-4166.5479,0.00022462,2]
[422114686,1778578232000,-509.40541095,0.00022561,2]
[422114687,1778578232000,-232.96010364,0.00022561,2]
[422114691,1778578232000,-501.88980466,0.00022561,2]
[422114680,1778578232000,-1401.39,0.00022364,2]
[422114685,1778578232000,-612.26877207,0.00022561,2]
[422114690,1778578232000,-352.45625214,0.00022561,2]
[422114670,1778578232000,-5000.0,0.00021942,2]
[422114727,1778578232000,-579.17367093,0.00022561,2]
[422114718,1778578232000,-579.17367093,0.00022561,2]
[422114719,1778578232000,-579.17367093,0.00022561,2]
[422114756,1778578232000,-574.71848885,0.00022561,2]
[422114754,1778578232000,-579.17367093,0.00022561,2]
[422114759,1778578232000,-574.71848885,0.00022561,2]
[422114753,1778578232000,-579.17367093,0.00022561,2]
[422114758,1778578232000,-574.71848885,0.00022561,2]
[422114761,1778578232000,-574.71848885,0.00022561,2]
[422114755,1778578232000,-574.71848885,0.00022561,2]
[422114760,1778578232000,-574.71848885,0.00022561,2]
[422114764,1778578232000,-574.71848885,0.00022561,2]
[422114772,1778578232000,-574.71848885,0.00022561,2]
[422114763,1778578232000,-574.71848885,0.00022561,2]
[422114773,1778578232000,-574.71848885,0.00022561,2]
[422114757,1778578232000,-574.71848885,0.00022561,2]
[422114766,1778578232000,-574.71848885,0.00022561,2]
[422114769,1778578232000,-574.71848885,0.00022561,2]
[422114771,1778578232000,-574.71848885,0.00022561,2]
[422114767,1778578232000,-574.71848885,0.00022561,2]
[422114768,1778578232000,-574.71848885,0.00022561,2]
[422114770,1778578232000,-574.71848885,0.00022561,2]
[422114774,1778578232000,-574.71848885,0.00022561,2]
[422114775,1778578232000,-574.71848885,0.00022561,2]
[422114776,1778578232000,-574.71848885,0.00022561,2]
[422114780,1778578232000,-574.71848885,0.00022561,2]
[422114779,1778578232000,-574.71848885,0.00022561,2]
[422114778,1778578232000,-574.71848885,0.00022561,2]
[422114722,1778578232000,-579.17367093,0.00022561,2]
[422114765,1778578232000,-574.71848885,0.00022561,2]
[422114751,1778578232000,-579.17367093,0.00022561,2]
[422114777,1778578232000,-574.71848885,0.00022561,2]
[422114762,1778578232000,-574.71848885,0.00022561,2]
[422114752,1778578232000,-579.17367093,0.00022561,2]
[422114723,1778578232000,-579.17367093,0.00022561,2]
[422114724,1778578232000,-579.17367093,0.00022561,2]
[422114729,1778578232000,-579.17367093,0.00022561,2]
[422114737,1778578232000,-579.17367093,0.00022561,2]
[422114738,1778578232000,-579.17367093,0.00022561,2]
[422114739,1778578232000,-579.17367093,0.00022561,2]
[422114728,1778578232000,-579.17367093,0.00022561,2]
[422114730,1778578232000,-579.17367093,0.00022561,2]
[422114733,1778578232000,-579.17367093,0.00022561,2]
[422114732,1778578232000,-579.17367093,0.00022561,2]
[422114731,1778578232000,-579.17367093,0.00022561,2]
[422114734,1778578232000,-579.17367093,0.00022561,2]
[422114720,1778578232000,-579.17367093,0.00022561,2]
[422114736,1778578232000,-579.17367093,0.00022561,2]
[422114746,1778578232000,-579.17367093,0.00022561,2]
[422114749,1778578232000,-579.17367093,0.00022561,2]
[422114748,1778578232000,-579.17367093,0.00022561,2]
[422114735,1778578232000,-579.17367093,0.00022561,2]
[422114750,1778578232000,-579.17367093,0.00022561,2]
[422114747,1778578232000,-579.17367093,0.00022561,2]
[422114745,1778578232000,-579.17367093,0.00022561,2]
[422114744,1778578232000,-579.17367093,0.00022561,2]
[422114742,1778578232000,-579.17367093,0.00022561,2]
[422114743,1778578232000,-579.17367093,0.00022561,2]
[422114740,1778578232000,-579.17367093,0.00022561,2]
[422114741,1778578232000,-579.17367093,0.00022561,2]
[422114829,1778578233000,-150.0,0.00023941,4]
[422114820,1778578233000,-150.0,0.00023701,4]
[422114811,1778578233000,-150.0,0.00023523,2]
[422114816,1778578233000,-150.0,0.00023583,4]
[422114810,1778578233000,-150.0,0.00023523,2]
[422114818,1778578233000,-150.0,0.00023642,4]
[422114814,1778578233000,-248.94301125,0.00023523,2]
[422114815,1778578233000,-295.73985248,0.00023523,2]
[422114812,1778578233000,-150.0,0.00023523,2]
[422114808,1778578233000,-172.113624,0.0002352,14]
[422114813,1778578233000,-150.0,0.00023523,2]
[422114828,1778578233000,-150.0,0.00023939,4]
[422114824,1778578233000,-150.0,0.0002382,4]
[422114830,1778578233000,-150.0,0.00023999,4]
[422114821,1778578233000,-150.0,0.00023732,4]
[422114823,1778578233000,-150.0,0.00023814,4]
[422114825,1778578233000,-150.0,0.00023837,4]
[422114822,1778578233000,-150.0,0.00023761,4]
[422114826,1778578233000,-150.0,0.0002388,4]
[422114827,1778578233000,-247.83824231,0.000239,2]
[422114833,1778578233000,-326.0,0.00024,2]
[422114842,1778578233000,-150.0,0.00024177,4]
[422114831,1778578233000,-168.0,0.00024,2]
[422114817,1778578233000,-150.0,0.00023628,4]
[422114843,1778578233000,-150.0,0.00024236,4]
[422114819,1778578233000,-247.83824231,0.000237,2]
[422114809,1778578233000,-150.0,0.00023523,4]
[422114794,1778578233000,-500.0,0.00022876,2]
[422114802,1778578233000,-164.09,0.00023186,2]
[422114834,1778578233000,-1401.39,0.00024,2]
[422114783,1778578233000,-564.26906177,0.00022561,2]
[422114784,1778578233000,-564.26906177,0.00022561,2]
[422114785,1778578233000,-564.26906177,0.00022561,2]
[422114781,1778578233000,-574.71848885,0.00022561,2]
[422114782,1778578233000,-564.26906177,0.00022561,2]
[422114787,1778578233000,-564.26906177,0.00022561,2]
[422114786,1778578233000,-564.26906177,0.00022561,2]
[422114788,1778578233000,-564.26906177,0.00022561,2]
[422114797,1778578233000,-262.0,0.00023,2]
[422114791,1778578233000,-564.26906177,0.00022561,2]
[422114795,1778578233000,-1401.39,0.00022909,2]
[422114796,1778578233000,-152.0,0.00023,2]
[422114789,1778578233000,-564.26906177,0.00022561,2]
[422114790,1778578233000,-564.26906177,0.00022561,2]
[422114793,1778578233000,-500.0,0.00022602,2]
[422114792,1778578233000,-564.26906176,0.00022561,2]
[422114799,1778578233000,-326.0,0.00023,2]
[422114798,1778578233000,-500.0,0.00023,30]
[422114801,1778578233000,-500.0,0.0002315,2]
[422114804,1778578233000,-247.83824231,0.000234,2]
[422114800,1778578233000,-2000.0,0.00023026,2]
[422114805,1778578233000,-225.04375716,0.00023424,2]
[422114806,1778578233000,-1401.39,0.00023455,2]
[422114807,1778578233000,-16972.25777623,0.00023463,2]
[422114803,1778578233000,-218.86703557,0.00023357,2]
[422114835,1778578233000,-150.0,0.00024046,4]
[422114832,1778578233000,-262.0,0.00024,2]
[422114839,1778578233000,-150.0,0.00024117,4]
[422114868,1778578233000,-860.85,0.00024802,7]
[422114871,1778578233000,-150.0,0.0002483,4]
[422114873,1778578233000,-150.0,0.0002489,4]
[422114870,1778578233000,-150.0,0.0002483,4]
[422114875,1778578233000,-673.17,0.00024946,2]
[422114878,1778578233000,-150.0,0.00024987,4]
[422114872,1778578233000,-150.0,0.00024882,4]
[422114877,1778578233000,-150.0,0.00024975,4]
[422114876,1778578233000,-150.0,0.00024949,4]
[422114880,1778578233000,-331.0,0.00025,2]
[422114882,1778578233000,-150.0,0.00025068,4]
[422114888,1778578233000,-150.0,0.00025196,4]
[422114869,1778578233000,-673.17,0.00024802,7]
[422114881,1778578233000,-150.0,0.00025008,4]
[422114885,1778578233000,-150.0,0.00025092,4]
[422114879,1778578233000,-272.0,0.00025,2]
[422114886,1778578233000,-150.0,0.00025127,4]
[422114883,1778578233000,-860.85,0.0002509,2]
[422114887,1778578233000,-150.0,0.00025187,4]
[422114889,1778578233000,-860.85,0.00025234,7]
[422114891,1778578233000,-9717.71505485,0.00025239,2]
[422114892,1778578233000,-150.0,0.00025246,4]
[422114890,1778578233000,-673.17,0.00025234,7]
[422114893,1778578233000,-150.0,0.00025266,4]
[422114895,1778578233000,-150.0,0.00025305,4]
[422114841,1778578233000,-150.0,0.00024177,4]
[422114884,1778578233000,-673.17,0.0002509,2]
[422114866,1778578233000,-150.0,0.00024771,4]
[422114874,1778578233000,-860.85,0.00024946,2]
[422114863,1778578233000,-150.0,0.00024673,4]
[422114840,1778578233000,-150.0,0.00024151,4]
[422114836,1778578233000,-150.0,0.00024058,4]
[422114837,1778578233000,-247.83824231,0.000241,2]
[422114838,1778578233000,-150.0,0.00024104,4]
[422114861,1778578233000,-168.86,0.00024658,2]
[422114894,1778578233000,-150.0,0.00025301,4]
[422114846,1778578233000,-150.0,0.00024355,4]
[422114847,1778578233000,-150.0,0.0002436,4]
[422114844,1778578233000,-150.0,0.00024255,4]
[422114855,1778578233000,-150.0,0.00024533,4]
[422114848,1778578233000,-150.0,0.00024395,4]
[422114850,1778578233000,-150.0,0.00024414,4]
[422114849,1778578233000,-247.83824231,0.000244,2]
[422114845,1778578233000,-150.0,0.00024296,4]
[422114852,1778578233000,-150.0,0.00024464,4]
[422114864,1778578233000,-150.0,0.00024685,4]
[422114851,1778578233000,-16972.25777623,0.00024463,2]
[422114865,1778578233000,-150.0,0.00024711,4]
[422114860,1778578233000,-860.85,0.00024658,2]
[422114859,1778578233000,-150.0,0.00024652,4]
[422114867,1778578233000,-150.0,0.00024778,4]
[422114862,1778578233000,-673.17,0.00024658,2]
[422114858,1778578233000,-150.0,0.00024593,4]
[422114856,1778578233000,-166.90746061,0.00024535,2]
[422114854,1778578233000,-150.0,0.00024505,2]
[422114853,1778578233000,-150.0,0.00024474,4]
[422114857,1778578233000,-150.0,0.00024569,4]
[422114908,1778578234000,-150.0,0.00025543,4]
[422114913,1778578234000,-673.17,0.00025667,7]
[422114907,1778578234000,-673.17,0.00025523,2]
[422114903,1778578234000,-150.0,0.00025484,4]
[422114905,1778578234000,-150.0,0.0002551,4]
[422114910,1778578234000,-150.0,0.00025602,4]
[422114906,1778578234000,-860.85,0.00025523,2]
[422114909,1778578234000,-150.0,0.00025556,4]
[422114912,1778578234000,-150.0,0.00025662,4]
[422114900,1778578234000,-150.0,0.00025405,4]
[422114911,1778578234000,-150.0,0.00025614,4]
[422114901,1778578234000,-150.0,0.00025424,4]
[422114902,1778578234000,-16972.25777623,0.00025464,2]
[422114897,1778578234000,-150.0,0.00025365,4]
[422114896,1778578234000,-2000.0,0.00025329,2]
[422114898,1778578234000,-860.85,0.00025378,7]
[422114899,1778578234000,-673.17,0.00025378,7]
[422114914,1778578234000,-150.0,0.00025719,4]
[422114904,1778578234000,-150.0,0.00025484,4]
[422114917,1778578234000,-150.0,0.00025781,4]
[422114931,1778578234000,-8930.50670432,0.00025984,2]
[422114915,1778578234000,-150.0,0.00025721,4]
[422114916,1778578234000,-200.0,0.0002578,2]
[422114934,1778578234000,-655.85593076,0.00025984,2]
[422114935,1778578234000,-252.80804943,0.00025984,2]
[422114936,1778578234000,-257.8752,0.00025984,2]
[422114932,1778578234000,-23857.63611231,0.00025984,2]
[422114927,1778578234000,-673.17,0.00025955,2]
[422114930,1778578234000,-1422630.26656255,0.00025984,2]
[422114929,1778578234000,-505.50097699,0.00025983,2]
[422114928,1778578234000,-150.0,0.00025959,4]
[422114933,1778578234000,-102180.60467578,0.00025984,2]
[422114920,1778578234000,-150.0,0.0002584,4]
[422114921,1778578234000,-150.0,0.00025847,4]
[422114925,1778578234000,-173.72527902,0.00025926,2]